Workbook

Sheet Sheet1
A1: 药学院2024年国家助学金班级分配名额
A2: 班级名称 | B2: 困难生人数 | C2: 原建档立卡人数 | D2: 助学金计划等级 | G2: 分配金额(元)
D3: 4700元/人 | E3: 3700元/人 | F3: 2700元/人
A4: 中制药21 | B4: 7 | C4: 0 | D4: 0 | E4: =B4-D4-F4 -> 6 | F4: 1 | G4: =D4*4700+E4*3700+F4*2700 -> 24900
A5: 中制药22 | B5: 8 | C5: 2 | D5: 2 | E5: =B5-D5-F5 -> 5 | F5: 1 | G5: =D5*4700+E5*3700+F5*2700 -> 30600
A6: 中药211 | B6: 8 | C6: 2 | D6: 2 | E6: =B6-D6-F6 -> 3 | F6: 3 | G6: =D6*4700+E6*3700+F6*2700 -> 28600
A7: 中药212 | B7: 4 | C7: 1 | D7: 1 | E7: =B7-D7-F7 -> 3 | F7: 0 | G7: =D7*4700+E7*3700+F7*2700 -> 15800
A8: 中药221 | B8: 5 | C8: 0 | D8: 0 | E8: =B8-D8-F8 -> 4 | F8: 1 | G8: =D8*4700+E8*3700+F8*2700 -> 17500
A9: 中药222 | B9: 9 | C9: 1 | D9: 1 | E9: =B9-D9-F9 -> 7 | F9: 1 | G9: =D9*4700+E9*3700+F9*2700 -> 33300
A10: 中药223 | B10: 4 | C10: 0 | D10: 0 | E10: =B10-D10-F10 -> 3 | F10: 1 | G10: =D10*4700+E10*3700+F10*2700 -> 13800
A11: 中药九21 | B11: 1 | C11: 0 | D11: 0 | E11: =B11-D11-F11 -> 0 | F11: 1 | G11: =D11*4700+E11*3700+F11*2700 -> 2700
A12: 中药九22 | B12: 4 | C12: 0 | D12: 0 | E12: =B12-D12-F12 -> 2 | F12: 2 | G12: =D12*4700+E12*3700+F12*2700 -> 12800
A13: 中药九24 | B13: 1 | C13: 0 | D13: 0 | E13: =B13-D13-F13 -> 1 | F13: 0 | G13: =D13*4700+E13*3700+F13*2700 -> 3700
A14: 中药九（屠呦呦班）24 | B14: 2 | C14: 0 | D14: 0 | E14: =B14-D14-F14 -> 2 | F14: 0 | G14: =D14*4700+E14*3700+F14*2700 -> 7400
A15: 中药类231 | B15: 3 | C15: 0 | D15: 0 | E15: =B15-D15-F15 -> 3 | F15: 0 | G15: =D15*4700+E15*3700+F15*2700 -> 11100
A16: 中药类232 | B16: 9 | C16: 0 | D16: 0 | E16: =B16-D16-F16 -> 8 | F16: 1 | G16: =D16*4700+E16*3700+F16*2700 -> 32300
A17: 中药类233 | B17: 3 | C17: 0 | D17: 0 | E17: =B17-D17-F17 -> 3 | F17: 0 | G17: =D17*4700+E17*3700+F17*2700 -> 11100
A18: 中药类234 | B18: 5 | C18: 1 | D18: 1 | E18: =B18-D18-F18 -> 4 | F18: 0 | G18: =D18*4700+E18*3700+F18*2700 -> 19500
A19: 中药类236 | B19: 5 | C19: 2 | D19: 2 | E19: =B19-D19-F19 -> 3 | F19: 0 | G19: =D19*4700+E19*3700+F19*2700 -> 20500
A20: 中药类241 | B20: 3 | C20: 0 | D20: 0 | E20: 3 | F20: 0 | G20: 11100
A21: 中药类242 | B21: 6 | C21: 1 | D21: 1 | E21: 4 | F21: 1 | G21: 22200
A22: 中药类243 | B22: 1 | C22: 1 | D22: 1 | E22: 0 | F22: 0 | G22: 4700
A23: 中药类244 | B23: 6 | C23: 1 | D23: 1 | E23: 5 | F23: 0 | G23: 23200
A24: 中药类245 | B24: 4 | C24: 0 | D24: 0 | E24: 4 | F24: 0 | G24: 14800
A25: 中药类246 | B25: 6 | C25: 0 | D25: 0 | E25: 5 | F25: 1 | G25: 21200
A26: 中药（3+2）23 | B26: 18 | C26: 1 | D26: 1 | E26: 12 | F26: 5 | G26: 62600
A27: 临床药学24 | B27: 2 | C27: 1 | D27: 1 | E27: 1 | F27: 0 | G27: 8400
A28: 药制剂21 | B28: 6 | C28: 1 | D28: 1 | E28: 4 | F28: 1 | G28: 22200
A29: 药制剂22 | B29: 9 | C29: 5 | D29: 5 | E29: 3 | F29: 1 | G29: 37300
A30: 药学211 | B30: 3 | C30: 0 | D30: 0 | E30: 3 | F30: 0 | G30: 11100
A31: 药学212 | B31: 9 | C31: 2 | D31: 2 | E31: 4 | F31: 3 | G31: 32300
A32: 药学213 | B32: 8 | C32: 1 | D32: 1 | E32: 7 | F32: 0 | G32: 30600
A33: 药学221 | B33: 8 | C33: 0 | D33: 0 | E33: 7 | F33: 1 | G33: 28600
A34: 药学222 | B34: 4 | C34: 0 | D34: 0 | E34: 3 | F34: 1 | G34: 13800
A35: 药学223 | B35: 7 | C35: 1 | D35: 1 | E35: 5 | F35: 1 | G35: 25900
A36: 药学241 | B36: 2 | C36: 1 | D36: 1 | E36: 1 | F36: 0 | G36: 8400
A37: 药学243 | B37: 2 | C37: 0 | D37: 0 | E37: 2 | F37: 0 | G37: 7400
A38: 药学244 | B38: 3 | C38: 1 | D38: 1 | E38: 2 | F38: 0 | G38: 12100
A39: 药学类231 | B39: 2 | C39: 0 | D39: 0 | E39: 2 | F39: 0 | G39: 7400
A40: 药学类232 | B40: 7 | C40: 2 | D40: 2 | E40: 4 | F40: 1 | G40: 26900
A41: 药学类233 | B41: 1 | C41: 0 | D41: 0 | E41: 1 | F41: 0 | G41: 3700
A42: 药学类234 | B42: 1 | C42: 0 | D42: 0 | E42: 1 | F42: 0 | G42: 3700
A43: 资源21 | B43: 5 | C43: 0 | D43: 0 | E43: 4 | F43: 1 | G43: 17500
A44: 资源221 | B44: 5 | C44: 1 | D44: 1 | E44: 4 | F44: 0 | G44: 19500
A45: 资源222 | B45: 6 | C45: 1 | D45: 1 | E45: 4 | F45: 1 | G45: 22200
A46: 泰州校区 | B46: 82 | C46: 7 | G46: =B46*3700 -> 303400
A47: 中药（3+2）24江苏医药 | B47: 25 | C47: 0 | G47: =B47*3700 -> 92500
A48: 中药(3+2)24苏卫 | B48: 12 | C48: 2 | G48: =B48*3700 -> 44400
